Workbook

Sheet Sheet1
A1: 附件
A2: 自治区广电局直属事业单位2025年度公开招聘工作人员总成绩、岗位排名及进入考察人员名单表
A3: 序号 | B3: 招聘单位 | C3: 招聘岗位名称 （岗位代码） | D3: 招聘 人数 | E3: 姓名 | F3: 性别 | G3: 准考证号 | H3: 笔试总成绩 （职业能力倾向测验成绩+综合应用能力成绩）÷3 | K3: 面试总成绩 1.无专业能力测试岗位的面试成绩=公共结构化面试成绩 2.有专业能力测试岗位的面试成绩=公共结构化面试成绩×50%+专业能力测试成绩×50% | N3: 总成绩 1.有笔试岗位的考试总成绩=[（职业能力倾向测验成绩+综合应用能力成绩）÷3]×50%+面试成绩×50% 2.无笔试岗位的考试总成绩=面试成绩 | O3: 岗位内总成绩排名 | P3: 备 注
H4: 职业能力倾向 测验成绩 | I4: 综合应用 能力成绩 | J4: 笔试 总成绩 | K4: 公共结构化 面试成绩 | L4: 专业能力 测试成绩 | M4: 面试 总成绩
A5: 1 | B5: 广西广播电视监测中心 | C5: 网络安全和信息化技术岗1451500712 | D5: 2 | E5: 林文昌 | F5: 男 | G5: 3145150109614 | H5: 102.50 | I5: 114.00 | J5: =ROUND((H5+I5)/3,2) -> 72.17 | K5: 75.60 | L5: 80.00 | M5: =ROUND((K5+L5)/2,2) -> 77.80 | N5: =(J5+M5)/2 -> 74.99 | O5: 1 | P5: 考察人选
A6: 2 | E6: 罗创芹 | F6: 女 | G6: 3145150108304 | H6: 101.00 | I6: 108.50 | J6: 69.83 | K6: 84.60 | L6: 63.00 | M6: 73.80 | N6: 71.82 | O6: 2 | P6: 因考生缺考达不到1∶3开考比例，公共结构化面试和专业能力测试均须达70分方可进入下一程序。该岗位考生专业能力测试成绩都达不到70分的，减少该岗位的招聘人数1人。
A7: 3 | E7: 陈继荃 | F7: 男 | G7: 3145150109115 | H7: 107.50 | I7: 103.50 | J7: 70.33 | K7: 81.00 | L7: 61.00 | M7: 71.00 | N7: 70.67 | O7: 3
A8: 4 | E8: 罗富文 | F8: 男 | G8: 3145150105726 | H8: 95.00 | I8: 106.00 | J8: 67.00 | K8: 75.80 | L8: 49.00 | M8: 62.40 | N8: 64.70 | O8: 4
A9: 5 | E9: 莫皓然 | F9: 男 | G9: 3145150108119 | H9: 103.50 | I9: 106.00 | J9: 69.83 | K9: 68.20 | L9: 47.00 | M9: 57.60 | N9: 63.72 | O9: 5
A10: 6 | E10: 潘泽林 | F10: 男 | G10: 3145150102909 | H10: 108.00 | I10: 90.00 | J10: 66.00 | K10: 73.60 | L10: 缺考 | M10: =ROUND(K10/2,2) -> 36.80 | N10: 51.40 | O10: 6
A11: 7 | B11: 广西广播电视学校 | C11: 语文教师 1451500715 | D11: 1 | E11: 王枳涵 | F11: 女 | G11: 4245150203605 | H11: 101.00 | I11: 89.00 | J11: 63.33 | K11: 83.20 | L11: 77.67 | M11: 80.44 | N11: 71.89 | O11: 1 | P11: 考察人选
A12: 8 | E12: 蔡宾玲 | F12: 女 | G12: 4245150204712 | H12: 97.50 | I12: 85.50 | J12: 61.00 | K12: 77.20 | L12: 83.33 | M12: 80.27 | N12: 70.64 | O12: 2
A13: 9 | E13: 钟秋雨 | F13: 女 | G13: 4245150202630 | H13: 99.50 | I13: 93.00 | J13: 64.17 | K13: 71.70 | L13: 75.00 | M13: 73.35 | N13: 68.76 | O13: 3
A14: 10 | B14: 广西新闻出版技工学校 | C14: 西式面点专业实习指导教师 1451500716 | D14: 1 | E14: 周时洢 | F14: 女 | G14: 免笔试 | H14: —— | I14: —— | J14: —— | K14: 缺考 | L14: 缺考 | M14: 缺考 | N14: 缺考 | O14: 缺考 | P14: 因考生缺考达不到1∶3开考比例，该岗位考生公共结构化面试成绩都达不到70分的，取消该岗位的招聘。
A15: 11 | E15: 王 明 | F15: 男 | G15: 免笔试 | H15: —— | I15: —— | J15: —— | K15: 61.60 | L15: 76.10 | M15: =ROUND((K15+L15)/2,2) -> 68.85 | N15: =M15 -> 68.85 | O15: 1
A16: 12 | E16: 冯丽丽 | F16: 女 | G16: 免笔试 | H16: —— | I16: —— | J16: —— | K16: 10.20 | L16: 72.01 | M16: 41.11 | N16: =M16 -> 41.11 | O16: 2
A17: 13 | C17: 印刷专业教师 1451500717 | D17: 1 | E17: 钟霞梦 | F17: 女 | G17: 4245150202921 | H17: 92.00 | I17: 77.50 | J17: =ROUND((H17+I17)/3,2) -> 56.50 | K17: 82.10 | L17: 77.81 | M17: 79.96 | N17: =(J17+M17)/2 -> 68.23 | O17: 1 | P17: 考察人选
A18: 14 | E18: 唐周颖 | F18: 女 | G18: 4245150202916 | H18: 106.00 | I18: 69.50 | J18: =ROUND((H18+I18)/3,2) -> 58.50 | K18: 73.40 | L18: 9.00 | M18: 41.20 | N18: 49.85 | O18: 2
A19: 15 | E19: 周丽莹 | F19: 女 | G19: 4245150203713 | H19: 86.50 | I19: 73.50 | J19: =ROUND((H19+I19)/3,2) -> 53.33 | K19: 70.00 | L19: 20.50 | M19: 45.25 | N19: 49.29 | O19: 3
A20: 16 | C20: 包装应用技术专业教师 1451500718 | D20: 1 | E20: 梁林颖 | F20: 男 | G20: 4245150203721 | H20: 101.50 | I20: 74.50 | J20: 58.67 | K20: 73.80 | L20: 51.00 | M20: 62.40 | N20: 60.54 | O20: 1 | P20: 该岗位考生专业能力测试未达合格分数60分不能进入下一程序，取消该岗位的招聘。
A21: 17 | E21: 罗瑞宁 | F21: 男 | G21: 4245150202702 | H21: 91.50 | I21: 78.50 | J21: 56.67 | K21: 68.90 | L21: 51.00 | M21: 59.95 | N21: 58.31 | O21: 2
A22: 18 | E22: 韦倩来 | F22: 女 | G22: 4245150203801 | H22: 92.00 | I22: 76.50 | J22: 56.17 | K22: 71.80 | L22: 30.67 | M22: 51.24 | N22: 53.71 | O22: 3
A23: 19 | C23: 多媒体制作专业教师 1451500719 | D23: 1 | E23: 曾 婧 | F23: 女 | G23: 4245150203022 | H23: 86.00 | I23: 80.50 | J23: 55.50 | K23: 75.00 | L23: 79.33 | M23: 77.17 | N23: 66.34 | O23: 1 | P23: 考察人选
A24: 20 | E24: 廖思思 | F24: 女 | G24: 4245150203416 | H24: 82.00 | I24: 78.50 | J24: 53.50 | K24: 74.20 | L24: 71.66 | M24: 72.93 | N24: 63.22 | O24: 2
A25: 21 | E25: 冀坤瑜 | F25: 女 | G25: 4245150204320 | H25: 72.00 | I25: 88.50 | J25: 53.50 | K25: 缺考 | L25: 缺考 | M25: 缺考 | N25: 缺考 | O25: 缺考
A26: 22 | C26: 历史教师 1451500721 | D26: 1 | E26: 符 杨 | F26: 女 | G26: 4245150202001 | H26: 111.50 | I26: 80.00 | J26: 63.83 | K26: 79.50 | L26: 73.63 | M26: =ROUND((K26+L26)/2,2) -> 76.57 | N26: =(J26+M26)/2 -> 70.20 | O26: 1 | P26: 考察人选
A27: 23 | E27: 廖琬婷 | F27: 女 | G27: 4245150204902 | H27: 104.00 | I27: 92.00 | J27: 65.33 | K27: 77.60 | L27: 71.20 | M27: =ROUND((K27+L27)/2,2) -> 74.40 | N27: =(J27+M27)/2 -> 69.87 | O27: 2
A28: 24 | E28: 玉 婷 | F28: 女 | G28: 4245150204407 | H28: 102.50 | I28: 83.00 | J28: 61.83 | K28: 75.10 | L28: 77.90 | M28: =ROUND((K28+L28)/2,2) -> 76.50 | N28: =(J28+M28)/2 -> 69.17 | O28: 3
A29: 25 | B29: 广西广播电视技术中心 | C29: 技术研发岗位 1451500722 | D29: 1 | E29: 李航宇 | F29: 男 | G29: 3145150105506 | H29: 90.50 | I29: 109.00 | J29: =(H29+I29)/3 -> 66.50 | K29: 78.80 | L29: —— | M29: =K29 -> 78.80 | N29: =(J29+M29)/2 -> 72.65 | O29: 1 | P29: 考察人选
A30: 26 | E30: 谢立志 | F30: 男 | G30: 3145150107228 | H30: 98.50 | I30: 101.00 | J30: 66.50 | K30: 77.00 | L30: —— | M30: =K30 -> 77.00 | N30: 71.75 | O30: 2
A31: 27 | B31: 广西广播电视无线传播枢纽台 | C31: 技术研发岗位 1451500723 | D31: 2 | E31: 罗晨阳 | F31: 男 | G31: 3145150111305 | H31: 94.50 | I31: 110.00 | J31: 68.17 | K31: 82.85 | L31: —— | M31: 82.85 | N31: 75.51 | O31: 1 | P31: 考察人选
A32: 28 | E32: 黄丝曼 | F32: 女 | G32: 3145150101711 | H32: 85.00 | I32: 104.50 | J32: 63.17 | K32: 82.15 | L32: —— | M32: 82.15 | N32: 72.66 | O32: 2 | P32: 考察人选
A33: 29 | E33: 阙荣君 | F33: 男 | G33: 3145150102610 | H33: 81.50 | I33: 72.50 | J33: 51.33 | K33: 82.10 | L33: —— | M33: 82.10 | N33: 66.72 | O33: 3
A34: 30 | E34: 黄怡琴 | F34: 女 | G34: 3145150107020 | H34: 79.50 | I34: 76.00 | J34: 51.83 | K34: 79.20 | L34: —— | M34: 79.20 | N34: 65.52 | O34: 4
A35: 31 | E35: 李玉升 | F35: 男 | G35: 3145150103910 | H35: 68.00 | I35: 93.00 | J35: 53.67 | K35: 74.50 | L35: —— | M35: 74.50 | N35: 64.08 | O35: 5
A36: 32 | E36: 杜 璁 | F36: 男 | G36: 3145150105124 | H36: 72.50 | I36: 96.00 | J36: 56.17 | K36: 68.35 | L36: —— | M36: 68.35 | N36: 62.26 | O36: 6
A37: 33 | B37: 广西广播电视地球站 | C37: 技术研发岗位 1451500724 | D37: 1 | E37: 唐 璐 | F37: 女 | G37: 3145150102309 | H37: 92.50 | I37: 98.50 | J37: 63.67 | K37: 82.98 | L37: —— | M37: 82.98 | N37: 73.32 | O37: 1 | P37: 考察人选
A38: 34 | E38: 邹子安 | F38: 男 | G38: 3145150102403 | H38: 89.50 | I38: 61.50 | J38: 50.33 | K38: 66.60 | L38: —— | M38: 66.60 | N38: 58.47 | O38: 2
A39: 35 | B39: 广西广播电视技术中心南宁分中心 | C39: 技术研发岗位 1451500725 | D39: 2 | E39: 王韵绚 | F39: 女 | G39: 3145150104811 | H39: 93.00 | I39: 112.50 | J39: 68.50 | K39: 83.10 | L39: —— | M39: 83.10 | N39: 75.80 | O39: 1 | P39: 考察人选
A40: 36 | E40: 宋展鹏 | F40: 男 | G40: 3145150109128 | H40: 99.50 | I40: 98.50 | J40: 66.00 | K40: 80.20 | L40: —— | M40: 80.20 | N40: 73.10 | O40: 2 | P40: 考察人选
A41: 37 | E41: 唐新宇 | F41: 男 | G41: 3145150109416 | H41: 78.50 | I41: 94.50 | J41: 57.67 | K41: 82.35 | L41: —— | M41: 82.35 | N41: 70.01 | O41: 3
A42: 38 | E42: 黄显升 | F42: 男 | G42: 3145150106518 | H42: 87.00 | I42: 86.00 | J42: 57.67 | K42: 76.65 | L42: —— | M42: 76.65 | N42: 67.16 | O42: 4
A43: 39 | E43: 黄 鑫 | F43: 男 | G43: 3145150109519 | H43: 90.50 | I43: 79.00 | J43: 56.50 | K43: 70.20 | L43: —— | M43: 70.20 | N43: 63.35 | O43: 5
A44: 40 | C44: 技术维护岗位 1451500726 | D44: 2 | E44: 李武越 | F44: 女 | G44: 3145150103522 | H44: 101.50 | I44: 103.00 | J44: 68.17 | K44: 83.90 | L44: —— | M44: 83.90 | N44: 76.03 | O44: 1 | P44: 考察人选
A45: 41 | E45: 胡小佳 | F45: 女 | G45: 3145150108513 | H45: 95.50 | I45: 104.00 | J45: 66.50 | K45: 83.70 | L45: —— | M45: 83.70 | N45: 75.10 | O45: 2 | P45: 考察人选
A46: 42 | E46: 陈建文 | F46: 男 | G46: 3145150108401 | H46: 82.00 | I46: 117.50 | J46: 66.50 | K46: 83.00 | L46: —— | M46: 83.00 | N46: 74.75 | O46: 3
A47: 43 | E47: 蒙靖柳 | F47: 女 | G47: 3145150110113 | H47: 96.50 | I47: 110.00 | J47: 68.83 | K47: 76.90 | L47: —— | M47: 76.90 | N47: 72.87 | O47: 4
A48: 44 | E48: 张锐堃 | F48: 男 | G48: 3145150104324 | H48: 103.50 | I48: 101.50 | J48: 68.33 | K48: 69.60 | L48: —— | M48: 69.60 | N48: 68.97 | O48: 5
A49: 45 | E49: 戚家怡 | F49: 女 | G49: 3145150108214 | H49: 102.00 | I49: 98.50 | J49: 66.83 | K49: 64.00 | L49: —— | M49: 64.00 | N49: 65.42 | O49: 6
A50: 46 | E50: 周海龙 | F50: 男 | G50: 3145150100528 | H50: 105.50 | I50: 98.00 | J50: 67.83 | K50: 缺考 | L50: —— | M50: 0.00 | N50: 33.92 | O50: 7
A51: 47 | C51: 天线维护兼驾驶员岗位 1451500727 | D51: 1 | E51: 廖跃贵 | F51: 男 | G51: 3145150800727 | H51: 89.50 | I51: 92.00 | J51: 60.50 | K51: 75.40 | L51: 80.00 | M51: =K51/2+L51/2 -> 77.70 | N51: 69.10 | O51: 1 | P51: 考察人选
A52: 48 | E52: 王有卓 | F52: 男 | G52: 3145150803003 | H52: 85.00 | I52: 83.50 | J52: 56.17 | K52: 84.70 | L52: 60.00 | M52: =K52/2+L52/2 -> 72.35 | N52: 64.26 | O52: 2
A53: 49 | E53: 张启勇 | F53: 男 | G53: 3145150800721 | H53: 76.50 | I53: 76.00 | J53: 50.83 | K53: 76.00 | L53: 71.00 | M53: =K53/2+L53/2 -> 73.50 | N53: 62.17 | O53: 3
A54: 50 | B54: 广西广播电视技术中心柳州分中心 | C54: 技术维护岗位 1451500729 | D54: 1 | E54: 卢丽兰 | F54: 女 | G54: 3145150801317 | H54: 89.50 | I54: 91.50 | J54: =(H54+I54)/3 -> 60.33 | K54: 79.20 | L54: —— | M54: =K54 -> 79.20 | N54: =(J54+M54)/2 -> 69.77 | O54: 1 | P54: 考察人选
A55: 51 | E55: 陈素娟 | F55: 女 | G55: 3145150802326 | H55: 71.50 | I55: 102.00 | J55: 57.83 | K55: 76.60 | L55: —— | M55: 76.60 | N55: 67.22 | O55: 2
A56: 52 | E56: 朱丽燕 | F56: 女 | G56: 3145150801616 | H56: 85.50 | I56: 86.50 | J56: 57.33 | K56: 73.20 | L56: —— | M56: 73.20 | N56: 65.27 | O56: 3
A57: 53 | C57: 财会资产岗位 1451500730 | D57: 1 | E57: 莫思琳 | F57: 女 | G57: 2145150501213 | H57: 89.50 | I57: 99.50 | J57: 63.00 | K57: 79.20 | L57: —— | M57: 79.20 | N57: 71.10 | O57: 1 | P57: 考察人选
A58: 54 | E58: 熊花露 | F58: 女 | G58: 2145150501328 | H58: 90.50 | I58: 104.00 | J58: 64.83 | K58: 77.20 | L58: —— | M58: 77.20 | N58: 71.02 | O58: 2
A59: 55 | E59: 杨雨欣 | F59: 女 | G59: 2145150501719 | H59: 101.00 | I59: 88.50 | J59: 63.17 | K59: 74.00 | L59: —— | M59: 74.00 | N59: 68.58 | O59: 3
A60: 56 | C60: 综合管理岗位 1451500731 | D60: 1 | E60: 宾小茹 | F60: 女 | G60: 1145151502316 | H60: 114.50 | I60: 109.00 | J60: 74.50 | K60: 80.60 | L60: —— | M60: 80.60 | N60: 77.55 | O60: 1 | P60: 考察人选
A61: 57 | E61: 雷许诺 | F61: 女 | G61: 1145151504601 | H61: 94.00 | I61: 111.00 | J61: 68.33 | K61: 83.00 | L61: —— | M61: 83.00 | N61: 75.67 | O61: 2
A62: 58 | B62: 广西广播电视技术中心桂林分中心 | C62: 技术研发岗位 1451500732 | D62: 1 | E62: 杨滨瑕 | F62: 女 | G62: 3145150802217 | H62: 92.00 | I62: 88.50 | J62: 60.17 | K62: 82.85 | L62: —— | M62: =K62 -> 82.85 | N62: 71.51 | O62: 1 | P62: 考察人选
A63: 59 | E63: 严 腾 | F63: 男 | G63: 3145150801826 | H63: 79.50 | I63: 97.50 | J63: 59.00 | K63: 75.25 | L63: —— | M63: 75.25 | N63: 67.13 | O63: 2
A64: 60 | E64: 龙 艳 | F64: 女 | G64: 3145150801101 | H64: 73.00 | I64: 77.00 | J64: 50.00 | K64: 72.07 | L64: —— | M64: 72.07 | N64: 61.04 | O64: 3
A65: 61 | C65: 技术维护岗位 1451500733 | D65: 2 | E65: 梁 鑫 | F65: 男 | G65: 3145150802711 | H65: 106.00 | I65: 103.00 | J65: 69.67 | K65: 83.60 | L65: —— | M65: 83.60 | N65: 76.63 | O65: 1 | P65: 考察人选
A66: 62 | E66: 盘香兰 | F66: 女 | G66: 3145150802103 | H66: 96.50 | I66: 106.00 | J66: 67.50 | K66: 79.20 | L66: —— | M66: 79.20 | N66: 73.35 | O66: 2 | P66: 考察人选
A67: 63 | E67: 陆寿发 | F67: 男 | G67: 3145150802822 | H67: 105.50 | I67: 95.00 | J67: 66.83 | K67: 78.00 | L67: —— | M67: 78.00 | N67: 72.42 | O67: 3
A68: 64 | E68: 陈焕枚 | F68: 女 | G68: 3145150801230 | H68: 99.00 | I68: 103.00 | J68: 67.33 | K68: 73.20 | L68: —— | M68: 73.20 | N68: 70.27 | O68: 4
A69: 65 | E69: 秦 敬 | F69: 男 | G69: 3145150802521 | H69: 98.50 | I69: 106.00 | J69: 68.17 | K69: 69.40 | L69: —— | M69: 69.40 | N69: 68.78 | O69: 5
A70: 66 | C70: 综合管理岗位 1451500734 | D70: 1 | E70: 钟 敏 | F70: 女 | G70: 1145151502524 | H70: 100.50 | I70: 96.00 | J70: 65.50 | K70: 79.40 | L70: —— | M70: 79.40 | N70: 72.45 | O70: 1 | P70: 考察人选 比例内总成绩同分，以面试成绩高优先
A71: 67 | E71: 黄珂悦 | F71: 女 | G71: 1145151504917 | H71: 96.50 | I71: 103.00 | J71: 66.50 | K71: 78.40 | L71: —— | M71: 78.40 | N71: 72.45 | O71: 1
A72: 68 | E72: 张罗林 | F72: 男 | G72: 1145151501723 | H72: 94.00 | I72: 106.00 | J72: 66.67 | K72: 缺考 | L72: —— | M72: 0.00 | N72: 33.33 | O72: 3
A73: 69 | E73: 潘裕莹 | F73: 女 | G73: 1145151501625 | H73: 87.50 | I73: 109.00 | J73: 65.50 | K73: 缺考 | L73: —— | M73: 0.00 | N73: 32.75 | O73: 4
A74: 70 | B74: 广西广播电视技术中心梧州分中心 | C74: 技术维护岗位 1451500735 | D74: 2 | E74: 朱勇森 | F74: 男 | G74: 3145150801525 | H74: 99.00 | I74: 99.50 | J74: 66.17 | K74: 80.80 | L74: —— | M74: 80.80 | N74: 73.48 | O74: 1 | P74: 考察人选
A75: 71 | E75: 罗煜铮 | F75: 女 | G75: 3145150801708 | H75: 89.50 | I75: 92.50 | J75: 60.67 | K75: 84.20 | L75: —— | M75: 84.20 | N75: 72.43 | O75: 2 | P75: 考察人选
A76: 72 | E76: 李 炜 | F76: 男 | G76: 3145150800324 | H76: 83.50 | I76: 92.00 | J76: 58.50 | K76: 80.80 | L76: —— | M76: 80.80 | N76: 69.65 | O76: 3
A77: 73 | E77: 刘 棋 | F77: 男 | G77: 3145150800928 | H77: 83.50 | I77: 105.50 | J77: 63.00 | K77: 74.80 | L77: —— | M77: 74.80 | N77: 68.90 | O77: 4
A78: 74 | E78: 陈玉丽 | F78: 女 | G78: 3145150802425 | H78: 90.00 | I78: 88.50 | J78: 59.50 | K78: 73.20 | L78: —— | M78: 73.20 | N78: 66.35 | O78: 5
A79: 75 | E79: 何华南 | F79: 男 | G79: 3145150801619 | H79: 76.00 | I79: 105.00 | J79: 60.33 | K79: 70.60 | L79: —— | M79: 70.60 | N79: 65.47 | O79: 6
A80: 76 | C80: 财会资产岗位 1451500736 | D80: 1 | E80: 陈弈航 | F80: 男 | G80: 2145150501606 | H80: 111.50 | I80: 117.50 | J80: 76.33 | K80: 77.60 | L80: —— | M80: 77.60 | N80: 76.97 | O80: 1 | P80: 考察人选
A81: 77 | E81: 封林璐 | F81: 女 | G81: 2145150502418 | H81: 101.00 | I81: 89.50 | J81: 63.50 | K81: 78.80 | L81: —— | M81: 78.80 | N81: 71.15 | O81: 2
A82: 78 | E82: 吴春良 | F82: 女 | G82: 2145150500817 | H82: 85.50 | I82: 84.50 | J82: 56.67 | K82: 65.20 | L82: —— | M82: 65.20 | N82: 60.93 | O82: 3
A83: 79 | C83: 综合管理岗位 1451500737 | D83: 1 | E83: 叶莹莹 | F83: 女 | G83: 1145151504426 | H83: 96.00 | I83: 102.50 | J83: 66.17 | K83: 79.00 | L83: —— | M83: 79.00 | N83: 72.58 | O83: 1 | P83: 考察人选
A84: 80 | E84: 谭 静 | F84: 女 | G84: 1145151501618 | H84: 92.00 | I84: 97.00 | J84: 63.00 | K84: 81.40 | L84: —— | M84: 81.40 | N84: 72.20 | O84: 2
A85: 81 | E85: 李奕学 | F85: 女 | G85: 1145151504719 | H85: 102.00 | I85: 86.00 | J85: 62.67 | K85: 78.40 | L85: —— | M85: 78.40 | N85: 70.53 | O85: 3
A86: 82 | B86: 广西广播电视技术中心北海分中心 | C86: 技术维护岗位 1451500738 | D86: 2 | E86: 吴汶梆 | F86: 男 | G86: 3145150802128 | H86: 101.00 | I86: 94.00 | J86: 65.00 | K86: 85.00 | L86: —— | M86: 85.00 | N86: 75.00 | O86: 1 | P86: 考察人选
A87: 83 | E87: 唐俊龙 | F87: 男 | G87: 3145150801303 | H87: 89.00 | I87: 97.50 | J87: 62.17 | K87: 86.20 | L87: —— | M87: 86.20 | N87: 74.18 | O87: 2 | P87: 考察人选
A88: 84 | E88: 凌 昊 | F88: 男 | G88: 3145150801423 | H88: 85.00 | I88: 101.00 | J88: 62.00 | K88: 85.80 | L88: —— | M88: 85.80 | N88: 73.90 | O88: 3
A89: 85 | E89: 姚 娆 | F89: 女 | G89: 3145150801503 | H89: 102.00 | I89: 97.50 | J89: 66.50 | K89: 80.60 | L89: —— | M89: 80.60 | N89: 73.55 | O89: 4
A90: 86 | E90: 陆宝宽 | F90: 男 | G90: 3145150801229 | H90: 90.00 | I90: 95.00 | J90: 61.67 | K90: 77.00 | L90: —— | M90: 77.00 | N90: 69.33 | O90: 5
A91: 87 | E91: 詹成远 | F91: 男 | G91: 3145150802209 | H91: 92.50 | I91: 96.50 | J91: 63.00 | K91: 72.20 | L91: —— | M91: 72.20 | N91: 67.60 | O91: 6
A92: 88 | C92: 财会资产岗位 1451500739 | D92: 1 | E92: 庞琇文 | F92: 女 | G92: 2145150502324 | H92: 80.50 | I92: 105.50 | J92: 62.00 | K92: 81.80 | L92: —— | M92: 81.80 | N92: 71.90 | O92: 1 | P92: 考察人选
A93: 89 | E93: 黄卓金 | F93: 男 | G93: 2145150501317 | H93: 91.00 | I93: 86.00 | J93: =(H93+I93)/3 -> 59.00 | K93: 69.00 | L93: —— | M93: 69.00 | N93: 64.00 | O93: 2
A94: 90 | E94: 余先扬 | F94: 男 | G94: 2145150501005 | H94: 80.50 | I94: 70.50 | J94: 50.33 | K94: 缺考 | L94: —— | M94: 0.00 | N94: 25.17 | O94: 3
A95: 91 | B95: 广西广播电视技术中心防城港分中心 | C95: 技术维护岗位 1451500740 | D95: 1 | E95: 谢 治 | F95: 男 | G95: 3145150802322 | H95: 86.50 | I95: 95.00 | J95: 60.50 | K95: 79.00 | L95: —— | M95: =K95 -> 79.00 | N95: 69.75 | O95: 1 | P95: 考察人选
A96: 92 | E96: 黄丽燕 | F96: 女 | G96: 3145150800320 | H96: 69.00 | I96: 81.00 | J96: 50.00 | K96: 71.70 | L96: —— | M96: 71.70 | N96: 60.85 | O96: 2
A97: 93 | E97: 刘洋铭 | F97: 男 | G97: 3145150800803 | H97: 76.50 | I97: 76.00 | J97: 50.83 | K97: 67.30 | L97: —— | M97: 67.30 | N97: 59.07 | O97: 3
A98: 94 | B98: 广西广播电视技术中心钦州分中心 | C98: 技术维护岗位 1451500741 | D98: 5 | E98: 刘宗超 | F98: 男 | G98: 3145150800318 | H98: 100.50 | I98: 112.00 | J98: 70.83 | K98: 82.00 | L98: —— | M98: 82.00 | N98: 76.42 | O98: 1 | P98: 考察人选
A99: 95 | E99: 王裕锦 | F99: 男 | G99: 3145150802227 | H99: 105.50 | I99: 99.00 | J99: 68.17 | K99: 82.70 | L99: —— | M99: 82.70 | N99: 75.43 | O99: 2 | P99: 考察人选
A100: 96 | E100: 王思怡 | F100: 女 | G100: 3145150802508 | H100: 97.00 | I100: 98.00 | J100: 65.00 | K100: 85.10 | L100: —— | M100: 85.10 | N100: 75.05 | O100: 3 | P100: 考察人选
A101: 97 | E101: 张 泓 | F101: 男 | G101: 3145150801118 | H101: 103.00 | I101: 99.50 | J101: 67.50 | K101: 81.30 | L101: —— | M101: 81.30 | N101: 74.40 | O101: 4 | P101: 考察人选
A102: 98 | E102: 黎兴发 | F102: 男 | G102: 3145150801827 | H102: 98.50 | I102: 94.50 | J102: 64.33 | K102: 81.40 | L102: —— | M102: 81.40 | N102: 72.87 | O102: 5 | P102: 考察人选
A103: 99 | E103: 莫立程 | F103: 男 | G103: 3145150802026 | H103: 111.50 | I103: 100.50 | J103: 70.67 | K103: 74.50 | L103: —— | M103: 74.50 | N103: 72.58 | O103: 6
A104: 100 | E104: 郭育铭 | F104: 男 | G104: 3145150800403 | H104: 107.50 | I104: 93.00 | J104: 66.83 | K104: 77.70 | L104: —— | M104: 77.70 | N104: 72.27 | O104: 7
A105: 101 | E105: 张弘毅 | F105: 男 | G105: 3145150800306 | H105: 88.50 | I105: 108.00 | J105: 65.50 | K105: 78.00 | L105: —— | M105: 78.00 | N105: 71.75 | O105: 8
A106: 102 | E106: 王梦乾 | F106: 男 | G106: 3145150802526 | H106: 90.00 | I106: 106.50 | J106: 65.50 | K106: 77.20 | L106: —— | M106: 77.20 | N106: 71.35 | O106: 9
A107: 103 | E107: 凌旭鑫 | F107: 男 | G107: 3145150801614 | H107: 102.00 | I107: 92.00 | J107: 64.67 | K107: 76.60 | L107: —— | M107: 76.60 | N107: 70.63 | O107: 10
A108: 104 | E108: 黄谱安 | F108: 男 | G108: 3145150801605 | H108: 103.00 | I108: 99.00 | J108: 67.33 | K108: 70.00 | L108: —— | M108: 70.00 | N108: 68.67 | O108: 11
A109: 105 | E109: 刘 昕 | F109: 男 | G109: 3145150800230 | H109: 96.50 | I109: 105.00 | J109: 67.17 | K109: 67.20 | L109: —— | M109: 67.20 | N109: 67.18 | O109: 12
A110: 106 | E110: 黄楚智 | F110: 男 | G110: 3145150802410 | H110: 85.00 | I110: 105.50 | J110: 63.50 | K110: 70.20 | L110: —— | M110: 70.20 | N110: 66.85 | O110: 13
A111: 107 | E111: 姚业海 | F111: 男 | G111: 3145150800604 | H111: 85.50 | I111: 108.00 | J111: 64.50 | K111: 缺考 | L111: —— | M111: 0.00 | N111: 32.25 | O111: 14
A112: 108 | C112: 天线维护兼驾驶员岗位 1451500742 | D112: 1 | E112: 黄荣良 | F112: 男 | G112: 3145150802626 | H112: 56.00 | I112: 80.00 | J112: 45.33 | K112: 55.80 | L112: 90.00 | M112: =K112/2+L112/2 -> 72.90 | N112: 59.12 | O112: 1 | P112: 面试时开考比例不到1:3，公共结构化面试和专业能力测试均须达70分方可进入下一程序。该考生公共结构化成绩未达70分，取消该岗位的招聘。
A113: 109 | B113: 广西广播电视技术中心贵港分中心 | C113: 技术维护岗位 1451500743 | D113: 2 | E113: 杨凯麟 | F113: 男 | G113: 3145150801016 | H113: 110.00 | I113: 85.00 | J113: 65.00 | K113: 81.60 | L113: —— | M113: =K113 -> 81.60 | N113: 73.30 | O113: 1 | P113: 考察人选
A114: 110 | E114: 李环斌 | F114: 男 | G114: 3145150802102 | H114: 92.50 | I114: 96.50 | J114: 63.00 | K114: 80.40 | L114: —— | M114: 80.40 | N114: 71.70 | O114: 2 | P114: 考察人选
A115: 111 | E115: 江俊杰 | F115: 男 | G115: 3145150801921 | H115: 95.50 | I115: 99.00 | J115: 64.83 | K115: 77.80 | L115: —— | M115: 77.80 | N115: 71.32 | O115: 3
A116: 112 | E116: 黄 哲 | F116: 男 | G116: 3145150802317 | H116: 91.00 | I116: 99.00 | J116: 63.33 | K116: 77.20 | L116: —— | M116: 77.20 | N116: 70.27 | O116: 4
A117: 113 | E117: 覃 警 | F117: 男 | G117: 3145150800525 | H117: 90.50 | I117: 102.00 | J117: 64.17 | K117: 72.20 | L117: —— | M117: 72.20 | N117: 68.18 | O117: 5
A118: 114 | B118: 广西广播电视技术中心玉林分中心 | C118: 技术维护岗位 1451500744 | D118: 2 | E118: 周 庆 | F118: 男 | G118: 3145150801704 | H118: 101.50 | I118: 103.50 | J118: 68.33 | K118: 88.80 | L118: —— | M118: 88.80 | N118: =(J118+M118)/2 -> 78.57 | O118: 1 | P118: 考察人选
A119: 115 | E119: 欧龙豪 | F119: 男 | G119: 3145150800428 | H119: 100.50 | I119: 111.50 | J119: 70.67 | K119: 82.30 | L119: —— | M119: 82.30 | N119: 76.48 | O119: 2 | P119: 考察人选
A120: 116 | E120: 刘子莹 | F120: 男 | G120: 3145150801705 | H120: 107.00 | I120: 95.50 | J120: 67.50 | K120: 80.20 | L120: —— | M120: 80.20 | N120: 73.85 | O120: 3
A121: 117 | E121: 李 堃 | F121: 男 | G121: 3145150800710 | H121: 99.50 | I121: 96.00 | J121: 65.17 | K121: 75.80 | L121: —— | M121: 75.80 | N121: 70.48 | O121: 4
A122: 118 | E122: 黎泳麟 | F122: 男 | G122: 3145150801130 | H122: 104.50 | I122: 98.50 | J122: 67.67 | K122: 72.40 | L122: —— | M122: 72.40 | N122: 70.03 | O122: 5
A123: 119 | E123: 吕锦繁 | F123: 男 | G123: 3145150800316 | H123: 101.00 | I123: 96.50 | J123: 65.83 | K123: 72.70 | L123: —— | M123: 72.70 | N123: 69.27 | O123: 6
A124: 120 | C124: 天线维护兼驾驶员岗位 1451500745 | D124: 1 | E124: 蒋震永 | F124: 男 | G124: 3145150800411 | H124: 63.00 | I124: 62.00 | J124: 41.67 | K124: 78.00 | L124: 88.00 | M124: =K124/2+L124/2 -> 83.00 | N124: 62.33 | O124: 1 | P124: 考察人选
A125: 121 | E125: 吴振伟 | F125: 男 | G125: 3145150801628 | H125: 58.00 | I125: 66.50 | J125: 41.50 | K125: 63.00 | L125: 61.00 | M125: 62.00 | N125: 51.75 | O125: 2
A126: 122 | E126: 梁 胜 | F126: 男 | G126: 3145150800307 | H126: 67.50 | I126: 61.50 | J126: 43.00 | K126: 64.80 | L126: 51.00 | M126: 57.90 | N126: 50.45 | O126: 3
A127: 123 | B127: 广西广播电视技术中心百色分中心 | C127: 技术维护岗位 1451500746 | D127: 3 | E127: 梁龙福 | F127: 男 | G127: 3145150900703 | H127: 104.00 | I127: 102.00 | J127: 68.67 | K127: 80.20 | L127: —— | M127: =K127 -> 80.20 | N127: 74.43 | O127: 1 | P127: 考察人选
A128: 124 | E128: 黄 峥 | F128: 男 | G128: 3145150903602 | H128: 79.00 | I128: 99.00 | J128: 59.33 | K128: 84.80 | L128: —— | M128: 84.80 | N128: 72.07 | O128: 2 | P128: 考察人选
A129: 125 | E129: 黄 苑 | F129: 女 | G129: 3145150900705 | H129: 84.00 | I129: 93.50 | J129: 59.17 | K129: 82.00 | L129: —— | M129: 82.00 | N129: 70.58 | O129: 3 | P129: 考察人选
A130: 126 | E130: 王荣禾 | F130: 男 | G130: 3145150902321 | H130: 79.00 | I130: 97.50 | J130: 58.83 | K130: 79.60 | L130: —— | M130: 79.60 | N130: 69.22 | O130: 4
A131: 127 | E131: 孙鹏伟 | F131: 男 | G131: 3145150903207 | H131: 77.50 | I131: 95.50 | J131: 57.67 | K131: 76.40 | L131: —— | M131: 76.40 | N131: 67.03 | O131: 5
A132: 128 | E132: 黄 农 | F132: 男 | G132: 3145150903703 | H132: 85.50 | I132: 95.50 | J132: 60.33 | K132: 70.80 | L132: —— | M132: 70.80 | N132: 65.57 | O132: 6
A133: 129 | E133: 李祸松 | F133: 男 | G133: 3145150903520 | H133: 90.00 | I133: 106.00 | J133: 65.33 | K133: 64.90 | L133: —— | M133: 64.90 | N133: 65.12 | O133: 7
A134: 130 | E134: 刘方能 | F134: 男 | G134: 3145150901107 | H134: 80.50 | I134: 97.00 | J134: 59.17 | K134: 69.60 | L134: —— | M134: 69.60 | N134: 64.38 | O134: 8
A135: 131 | E135: 莫 若 | F135: 男 | G135: 3145150902517 | H135: 98.50 | I135: 102.50 | J135: 67.00 | K135: 缺考 | L135: —— | M135: 0.00 | N135: 33.50 | O135: 9
A136: 132 | B136: 广西广播电视技术中心贺州分中心 | C136: 技术维护岗位 1451500747 | D136: 2 | E136: 朱韵溦 | F136: 女 | G136: 3145150903305 | H136: 79.00 | I136: 99.50 | J136: 59.50 | K136: 79.10 | L136: —— | M136: 79.10 | N136: 69.30 | O136: 1 | P136: 考察人选
A137: 133 | E137: 邓道振 | F137: 男 | G137: 3145150901030 | H137: 65.00 | I137: 102.00 | J137: 55.67 | K137: 80.00 | L137: —— | M137: 80.00 | N137: 67.83 | O137: 2 | P137: 考察人选
A138: 134 | E138: 黄佑铭 | F138: 男 | G138: 3145150902519 | H138: 83.50 | I138: 84.00 | J138: 55.83 | K138: 76.60 | L138: —— | M138: 76.60 | N138: 66.22 | O138: 3
A139: 135 | E139: 钟维骏 | F139: 男 | G139: 3145150903613 | H139: 90.50 | I139: 81.00 | J139: 57.17 | K139: 73.40 | L139: —— | M139: 73.40 | N139: 65.28 | O139: 4
A140: 136 | E140: 杨金花 | F140: 女 | G140: 3145150900903 | H140: 78.50 | I140: 90.00 | J140: 56.17 | K140: 52.80 | L140: —— | M140: 52.80 | N140: 54.48 | O140: 5
A141: 137 | E141: 杨松禧 | F141: 男 | G141: 3145150902013 | H141: 93.00 | I141: 105.00 | J141: 66.00 | K141: 缺考 | L141: —— | M141: 0.00 | N141: 33.00 | O141: 6
A142: 138 | C142: 天线维护兼驾驶员岗位 1451500748 | D142: 1 | E142: 蒋卫政 | F142: 男 | G142: 3145150903629 | H142: 76.00 | I142: 61.50 | J142: 45.83 | K142: 77.80 | L142: 65.00 | M142: =K142/2+L142/2 -> 71.40 | N142: 58.62 | O142: 1 | P142: 面试时开考比例不到1:3，公共结构化面试和专业能力测试均须达70分方可进入下一程序。该岗位考生专业能力测试成绩未达70分，取消该岗位的招聘。
A143: 139 | E143: 刘明焯 | F143: 男 | G143: 3145150900904 | H143: 63.50 | I143: 69.00 | J143: 44.17 | K143: 59.00 | L143: 缺考 | M143: =K143/2 -> 29.50 | N143: 36.83 | O143: 2
A144: 140 | C144: 财会资产岗位 1451500749 | D144: 1 | E144: 黄慧璇 | F144: 女 | G144: 2145150501711 | H144: 91.00 | I144: 98.50 | J144: 63.17 | K144: 84.20 | L144: —— | M144: 84.20 | N144: 73.68 | O144: 1 | P144: 考察人选
A145: 141 | E145: 杨茜钰 | F145: 女 | G145: 2145150502128 | H145: 89.50 | I145: 93.00 | J145: 60.83 | K145: 79.60 | L145: —— | M145: 79.60 | N145: 70.22 | O145: 2
A146: 142 | E146: 林 艳 | F146: 女 | G146: 2145150500803 | H146: 75.00 | I146: 100.50 | J146: 58.50 | K146: 71.40 | L146: —— | M146: 71.40 | N146: 64.95 | O146: 3
A147: 143 | B147: 广西广播电视技术中心河池分中心 | C147: 技术维护岗位 1451500750 | D147: 3 | E147: 胡 蓉 | F147: 女 | G147: 3145150901612 | H147: 98.00 | I147: 84.00 | J147: 60.67 | K147: 81.60 | L147: —— | M147: 81.60 | N147: 71.13 | O147: 1 | P147: 考察人选
A148: 144 | E148: 张晓庆 | F148: 女 | G148: 3145150902612 | H148: 98.00 | I148: 93.50 | J148: 63.83 | K148: 77.00 | L148: —— | M148: 77.00 | N148: 70.42 | O148: 2 | P148: 考察人选
A149: 145 | E149: 莫微迪 | F149: 男 | G149: 3145150901718 | H149: 93.00 | I149: 96.00 | J149: 63.00 | K149: 75.70 | L149: —— | M149: 75.70 | N149: 69.35 | O149: 3 | P149: 考察人选
A150: 146 | E150: 苏柳宁 | F150: 女 | G150: 3145150903021 | H150: 84.50 | I150: 87.00 | J150: 57.17 | K150: 80.70 | L150: —— | M150: 80.70 | N150: 68.93 | O150: 4
A151: 147 | E151: 孙嘉禾 | F151: 男 | G151: 3145150903524 | H151: 81.00 | I151: 93.00 | J151: 58.00 | K151: 78.60 | L151: —— | M151: 78.60 | N151: 68.30 | O151: 5
A152: 148 | E152: 张元旺 | F152: 男 | G152: 3145150904010 | H152: 76.00 | I152: 90.00 | J152: 55.33 | K152: 75.30 | L152: —— | M152: 75.30 | N152: 65.32 | O152: 6
A153: 149 | E153: 黄程怀 | F153: 男 | G153: 3145150901120 | H153: 89.50 | I153: 86.00 | J153: 58.50 | K153: 58.00 | L153: —— | M153: 58.00 | N153: 58.25 | O153: 7
A154: 150 | E154: 邹宇忠 | F154: 男 | G154: 3145150902914 | H154: 85.50 | I154: 92.50 | J154: 59.33 | K154: 缺考 | L154: —— | M154: 0.00 | N154: 29.67 | O154: 8
A155: 151 | C155: 财会资产岗位 1451500751 | D155: 1 | E155: 韦 瑛 | F155: 女 | G155: 2145150501117 | H155: 108.50 | I155: 112.00 | J155: 73.50 | K155: 82.60 | L155: —— | M155: 82.60 | N155: 78.05 | O155: 1 | P155: 考察人选
A156: 152 | E156: 周雪兰 | F156: 女 | G156: 2145150500627 | H156: 103.50 | I156: 96.50 | J156: 66.67 | K156: 缺考 | L156: —— | M156: 0.00 | N156: 33.33 | O156: 2
A157: 153 | B157: 广西广播电视技术中心来宾分中心 | C157: 技术维护岗位 1451500752 | D157: 2 | E157: 江洪祉 | F157: 男 | G157: 3145150900420 | H157: 92.00 | I157: 98.00 | J157: =(H157+I157)/3 -> 63.33 | K157: 84.00 | L157: —— | M157: 84.00 | N157: 73.67 | O157: 1 | P157: 考察人选
A158: 154 | E158: 黄顺能 | F158: 男 | G158: 3145150900413 | H158: 90.50 | I158: 97.50 | J158: 62.67 | K158: 82.00 | L158: —— | M158: =K158 -> 82.00 | N158: 72.33 | O158: 2 | P158: 考察人选
A159: 155 | E159: 肖 敏 | F159: 男 | G159: 3145150901412 | H159: 93.50 | I159: 97.00 | J159: 63.50 | K159: 80.90 | L159: —— | M159: 80.90 | N159: 72.20 | O159: 3
A160: 156 | E160: 黄锦雨 | F160: 女 | G160: 3145150903227 | H160: 89.50 | I160: 106.50 | J160: 65.33 | K160: 78.60 | L160: —— | M160: 78.60 | N160: 71.97 | O160: 4
A161: 157 | E161: 陈伟林 | F161: 男 | G161: 3145150902823 | H161: 93.50 | I161: 94.00 | J161: 62.50 | K161: 76.40 | L161: —— | M161: 76.40 | N161: 69.45 | O161: 5
A162: 158 | E162: 陈 维 | F162: 男 | G162: 3145150901919 | H162: 94.50 | I162: 93.50 | J162: 62.67 | K162: 72.60 | L162: —— | M162: 72.60 | N162: 67.63 | O162: 6
A163: 159 | C163: 财会资产岗位 1451500753 | D163: 1 | E163: 蒋晶晶 | F163: 女 | G163: 2145150502201 | H163: 105.50 | I163: 105.50 | J163: 70.33 | K163: 80.20 | L163: —— | M163: 80.20 | N163: 75.27 | O163: 1 | P163: 考察人选
A164: 160 | E164: 宋雨洪 | F164: 女 | G164: 2145150500418 | H164: 88.50 | I164: 107.00 | J164: 65.17 | K164: 75.80 | L164: —— | M164: 75.80 | N164: 70.48 | O164: 2
A165: 161 | E165: 梁杨花 | F165: 女 | G165: 2145150500429 | H165: 96.50 | I165: 97.00 | J165: 64.50 | K165: 58.20 | L165: —— | M165: 58.20 | N165: 61.35 | O165: 3
A166: 162 | B166: 广西广播电视技术中心崇左分中心 | C166: 技术维护岗位 1451500754 | D166: 2 | E166: 赵龙发 | F166: 男 | G166: 3145150903803 | H166: 84.00 | I166: 94.00 | J166: 59.33 | K166: 81.00 | L166: —— | M166: 81.00 | N166: =(J166+M166)/2 -> 70.17 | O166: 1 | P166: 考察人选
A167: 163 | E167: 吴定县 | F167: 男 | G167: 3145150901023 | H167: 79.00 | I167: 92.50 | J167: 57.17 | K167: 80.80 | L167: —— | M167: 80.80 | N167: 68.98 | O167: 2 | P167: 考察人选
A168: 164 | E168: 林灏宇 | F168: 男 | G168: 3145150900330 | H168: 88.50 | I168: 81.00 | J168: 56.50 | K168: 81.00 | L168: —— | M168: 81.00 | N168: 68.75 | O168: 3
A169: 165 | E169: 方 锋 | F169: 男 | G169: 3145150901321 | H169: 97.00 | I169: 88.00 | J169: 61.67 | K169: 73.20 | L169: —— | M169: 73.20 | N169: 67.43 | O169: 4
A170: 166 | E170: 颜宇嵚 | F170: 男 | G170: 3145150903502 | H170: 79.00 | I170: 94.50 | J170: 57.83 | K170: 76.60 | L170: —— | M170: 76.60 | N170: 67.22 | O170: 5
A171: 167 | E171: 韦凯恒 | F171: 男 | G171: 3145150902910 | H171: 77.50 | I171: 105.50 | J171: 61.00 | K171: 70.20 | L171: —— | M171: 70.20 | N171: 65.60 | O171: 6
A172: 168 | C172: 财会资产岗位 1451500755 | D172: 1 | E172: 韦丽芳 | F172: 女 | G172: 2145150501414 | H172: 73.50 | I172: 98.00 | J172: 57.17 | K172: 73.60 | L172: —— | M172: 73.60 | N172: 65.38 | O172: 1 | P172: 考察人选
A173: 169 | E173: 吕源泉 | F173: 男 | G173: 2145150500922 | H173: 104.50 | I173: 66.50 | J173: 57.00 | K173: 72.60 | L173: —— | M173: 72.60 | N173: 64.80 | O173: 2
A174: 170 | E174: 李香枝 | F174: 女 | G174: 2145150501120 | H174: 68.00 | I174: 76.00 | J174: 48.00 | K174: 72.60 | L174: —— | M174: 72.60 | N174: 60.30 | O174: 3
A176: 备注： 1.公共科目笔试成绩（职业能力倾向测验成绩+综合应用能力成绩）不低于120分，且职业能力倾向测验成绩不低于55分。 2.公共结构化面试、专业能力测试的合格分数均为60分，未达合格分数者不能进入下一程序。经核准开考或因考生缺考达不到1∶3开考比例的，该岗位考生公共结构化面试、专业能力测试成绩均须达到70分方可按招聘需求进入下一程序。考生成绩都达不到70分的，取消该岗位的招聘。未设置专业能力测试的，以公共结构化面试成绩为准。
